bitfinex-derivatives/quotes_BTCF0:USTF0_20250517
["timestamp","ask_amount","ask_price","bid_price","bid_amount"]
[1747474498811,1.0110434,103080.0,103070.0,0.25028249]
[1747474499321,1.0110434,103080.0,103070.0,0.00738249]
[1747474502216,1.16111466,103080.0,103070.0,0.00738249]
[1747474503428,1.16111466,103080.0,103070.0,0.06678249]
[1747474504323,1.0110434,103080.0,103070.0,0.06678249]
[1747474504721,0.6800592,103080.0,103070.0,0.26076049]
[1747474504929,0.8005513,103080.0,103070.0,0.06678249]
[1747474505125,0.8005513,103080.0,103070.0,0.26076049]
[1747474505429,0.8005513,103080.0,103070.0,0.06678249]
[1747474506014,0.9210434,103080.0,103070.0,0.06678249]
[1747474507429,0.9210434,103080.0,103070.0,0.00738249]
[1747474507927,0.048495,103070.0,103050.0,0.1940147]
[1747474508125,1.3052764,103060.0,103050.0,0.0611]
[1747474508727,0.1940157,103050.0,103040.0,0.10210697]
[1747474508930,0.9788999,103050.0,103040.0,0.10210697]
[1747474509123,0.97927965,103050.0,103040.0,0.10210697]
[1747474509322,0.97927965,103050.0,103040.0,0.063]
[1747474509523,0.85878755,103050.0,103040.0,0.063]
[1747474510631,0.85878755,103050.0,103040.0,0.065]
[1747474511425,0.85978755,103050.0,103040.0,0.2620345]
[1747474511627,0.85978755,103050.0,103040.0,0.068]
[1747474511818,0.74880526,103050.0,103040.0,0.065]
[1747474512024,0.86829736,103050.0,103040.0,0.067]
[1747474512333,0.95822638,103050.0,103040.0,0.067]
[1747474513430,1.07871848,103050.0,103040.0,0.067]
[1747474513631,0.98878946,103050.0,103040.0,0.067]
[1747474514423,1.34958946,103050.0,103040.0,0.067]
[1747474516023,1.22909736,103050.0,103040.0,0.067]
[1747474517036,1.34958946,103050.0,103040.0,0.067]
[1747474517726,1.34958946,103050.0,103040.0,0.1277]
[1747474519037,1.10860526,103050.0,103040.0,0.3217345]
[1747474519226,1.22909736,103050.0,103040.0,0.1277]
[1747474520227,1.34958946,103050.0,103040.0,0.1277]
[1747474521633,1.34958946,103050.0,103040.0,0.067]
[1747474521834,1.10860526,103050.0,103040.0,0.067]
[1747474522025,1.34958946,103050.0,103040.0,0.067]
[1747474522934,1.34958946,103050.0,103040.0,0.004]
[1747474523432,1.56886946,103050.0,103040.0,0.004]
[1747474523734,1.32788526,103050.0,103040.0,0.004]
[1747474523926,1.56886946,103050.0,103040.0,0.004]
[1747474524127,1.56886946,103050.0,103040.0,0.0657]
[1747474526729,1.59886946,103050.0,103040.0,0.0657]
[1747474528035,1.59886946,103050.0,103040.0,0.004]
[1747474528228,0.1940533,103030.0,103020.0,0.03702423]
[1747474528433,1.2554654,103030.0,103020.0,0.03702423]
[1747474528736,1.31724515,103030.0,103020.0,0.09642423]
[1747474528930,1.43894515,103030.0,103020.0,0.09642423]
[1747474529239,1.77863725,103030.0,103020.0,1e-08]
[1747474529440,1.65914515,103030.0,103020.0,0.00500001]
[1747474529735,0.1941098,103000.0,102990.0,0.5741456]
[1747474529935,0.700483,103010.0,103000.0,0.1941098]
[1747474530233,0.82135485,103010.0,103000.0,0.2535098]
[1747474530437,0.88045485,103010.0,103000.0,0.2535098]
[1747474530825,0.88045485,103010.0,103000.0,0.0594]
[1747474531030,0.1941099,103000.0,102990.0,0.534832]
[1747474531230,0.42027975,103000.0,102990.0,0.414632]
[1747474531429,0.00037975,103000.0,102990.0,0.530132]
[1747474532241,0.00037975,103000.0,102990.0,0.710132]
[1747474532429,0.00137975,103000.0,102990.0,0.712132]
[1747474533045,0.00137975,103000.0,102990.0,0.932372]
[1747474534945,0.00137975,103000.0,102990.0,0.94703737]
[1747474536539,0.00137975,103000.0,102990.0,0.72779737]
[1747474536743,0.00137975,103000.0,102990.0,0.94703737]
[1747474537246,0.19548965,103000.0,102990.0,0.94703737]
[1747474539038,0.31598175,103000.0,102990.0,0.94703737]
[1747474539239,0.37598175,103000.0,102990.0,0.72779737]
[1747474539945,0.25548965,103000.0,102990.0,0.72779737]
[1747474540648,0.25548965,103000.0,102990.0,0.66609031]
[1747474541034,0.2558694,103000.0,102990.0,0.88533031]
[1747474541338,0.2558694,103000.0,102990.0,0.87066494]
[1747474542143,0.3763615,103000.0,102990.0,0.87066494]
[1747474542339,0.7371615,103000.0,102990.0,0.87066494]
[1747474542640,0.7371615,103000.0,102990.0,0.55437054]
[1747474542846,0.8558615,103000.0,102990.0,0.55437054]
[1747474543641,0.8558615,103000.0,102990.0,0.36024184]
[1747474543850,0.8558615,103000.0,102990.0,0.30044184]
[1747474544344,0.86565572,103000.0,102990.0,0.49457054]
[1747474545049,0.86565572,103000.0,102990.0,0.30044184]
[1747474545941,0.86565572,103000.0,102990.0,0.49457054]
[1747474546247,0.86565572,103000.0,102990.0,0.31457054]
[1747474546542,0.86565572,103000.0,102990.0,0.12044184]
[1747474547746,0.86565572,103000.0,102990.0,0.00494184]
[1747474548146,0.86565572,103000.0,102990.0,0.12414184]
[1747474549254,0.86565572,103000.0,102990.0,0.06494184]
[1747474549447,0.88001239,103000.0,102990.0,0.06494184]
[1747474552848,0.88001239,103000.0,102990.0,0.00494184]
[1747474553445,0.88001239,103000.0,102990.0,0.06494184]
[1747474554151,1.24081239,103000.0,102990.0,0.00494184]
[1747474556756,1.24081239,103000.0,102990.0,0.06294184]
[1747474557953,1.24081239,103000.0,102990.0,0.00494184]
[1747474559050,1.30081239,103000.0,102990.0,0.00494184]
[1747474559853,1.51081239,103000.0,102990.0,0.00494184]
[1747474560855,1.63130449,103000.0,102990.0,0.00494184]
[1747474561041,0.1941286,102990.0,102980.0,0.1224]
[1747474561241,1.13827255,102990.0,102980.0,0.1224]
[1747474561957,1.13827255,102990.0,102980.0,0.0604]
[1747474563261,1.13827255,102990.0,102970.0,0.12252788]
[1747474563262,0.1941476,102980.0,102970.0,0.12252788]
[1747474563460,0.7388476,102980.0,102970.0,0.37719428]
[1747474563661,0.8593397,102980.0,102970.0,0.37719428]
[1747474563853,0.85971945,102980.0,102970.0,0.37719428]
[1747474564065,0.80111945,102980.0,102970.0,0.37719428]
[1747474564261,0.80111945,102980.0,102970.0,0.55719428]
[1747474564459,0.68162735,102980.0,102970.0,0.56019428]
[1747474564660,0.80211945,102980.0,102970.0,0.56019428]
[1747474565758,0.80211945,102980.0,102970.0,0.56119428]
[1747474566863,0.44131945,102980.0,102970.0,0.56119428]
[1747474567065,0.80211945,102980.0,102970.0,0.56119428]
[1747474567261,0.89193737,102980.0,102970.0,0.56119428]
[1747474567566,0.95181598,102980.0,102970.0,0.56119428]
[1747474569661,0.88901598,102980.0,102970.0,0.56119428]
[1747474571165,0.76852388,102980.0,102970.0,0.56119428]
[1747474571373,0.88901598,102980.0,102970.0,0.56119428]
[1747474572356,0.76852388,102980.0,102970.0,0.56119428]
[1747474572560,0.15107628,102980.0,102970.0,1.04248638]
[1747474572762,0.09119767,102980.0,102970.0,1.04248638]
[1747474573068,0.31624677,103000.0,102990.0,0.1941287]
[1747474573273,0.31624677,103000.0,102990.0,0.5337808]
[1747474573466,0.31624677,103000.0,102990.0,0.5291887]
[1747474573669,0.67704677,103000.0,102990.0,0.5291887]
[1747474573863,0.79753887,103000.0,102990.0,0.33506]
[1747474574167,0.91943887,103000.0,102990.0,0.52517895]
[1747474574359,0.91943887,103000.0,102990.0,0.33105025]
[1747474574559,0.97783887,103000.0,102990.0,0.33105025]
[1747474575156,0.98083887,103000.0,102990.0,0.33205025]
[1747474576263,0.98083887,103000.0,102990.0,0.39255025]
[1747474576464,0.98083887,103000.0,102990.0,0.3574]
[1747474576465,0.86108165,103000.0,102990.0,0.3574]
[1747474577077,0.86108165,103000.0,102990.0,0.5515287]
[1747474579876,0.86108165,103000.0,102990.0,0.58669243]
[1747474580067,0.86108165,103000.0,102990.0,0.39256373]
[1747474580267,0.86108165,103000.0,102990.0,0.58669243]
[1747474580579,0.68318955,103000.0,102990.0,0.58669243]
[1747474583377,0.68318955,103000.0,102990.0,0.5515287]
[1747474586778,0.68281661,103000.0,102990.0,0.5515287]
[1747474587281,0.74341661,103000.0,102990.0,0.5515287]
[1747474589576,0.62121671,103000.0,102990.0,0.5515287]
[1747474589783,0.42710681,103000.0,102990.0,0.8911808]
[1747474589982,0.62121671,103000.0,102990.0,0.8911808]
[1747474590775,0.62121671,103000.0,102990.0,0.9010815]
[1747474591783,0.62121671,103000.0,102990.0,0.8911808]
[1747474592196,0.62121671,103000.0,102990.0,0.7706887]
[1747474592486,0.68231671,103000.0,102990.0,0.7706887]
[1747474592676,0.74271671,103000.0,102990.0,0.7706887]
[1747474592875,0.38191671,103000.0,102990.0,0.7706887]
[1747474593076,0.32198965,103000.0,102990.0,0.7706887]
[1747474593481,0.32198965,103000.0,102990.0,0.5515287]
[1747474593684,0.32198965,103000.0,102990.0,0.9894487]
[1747474598184,0.12787975,103000.0,102990.0,0.7704887]
[1747474598385,0.12787975,103000.0,102990.0,0.9894087]
[1747474599389,0.12787975,103000.0,102990.0,1.1099008]
[1747474599590,0.32198965,103000.0,102990.0,1.1099008]
[1747474599790,0.12787975,103000.0,102990.0,1.1099008]
[1747474600796,0.32198965,103000.0,102990.0,1.1099008]
[1747474602494,0.12787975,103000.0,102990.0,1.1099008]
[1747474602890,0.00637975,103000.0,102990.0,1.2303929]
[1747474603087,0.00637975,103000.0,102990.0,1.7443849]
[1747474603293,0.14982599,103010.0,103000.0,0.1941098]
[1747474603500,0.14982599,103010.0,103000.0,0.8537019]
[1747474603697,0.14982599,103010.0,103000.0,1.6176859]
[1747474604089,0.14982599,103010.0,103000.0,1.7976859]
[1747474604397,0.14982599,103010.0,103000.0,1.5476859]
[1747474604697,0.15182599,103010.0,103000.0,1.5486859]
[1747474605397,0.15182599,103010.0,103000.0,1.5506859]
[1747474607590,0.27172599,103010.0,103000.0,1.8913219]
[1747474607792,0.46581699,103010.0,103000.0,1.7708298]
[1747474608101,0.1801,103010.0,103000.0,1.98293211]
[1747474608494,0.1219,103010.0,103000.0,1.98293211]
[1747474608692,0.002,103010.0,103000.0,1.98293211]
[1747474609505,0.1203,103010.0,103000.0,1.98293211]
[1747474609805,0.1203,103010.0,103000.0,1.98289211]
[1747474609996,0.314391,103010.0,103000.0,1.56599211]
[1747474610193,0.373691,103010.0,103000.0,1.56599211]
[1747474610394,0.373691,103010.0,103000.0,0.89336217]
[1747474610702,0.734491,103010.0,103000.0,0.75132217]
[1747474611288,0.8549831,103010.0,103000.0,0.69292217]
[1747474611703,0.91491016,103010.0,103000.0,0.38255196]
[1747474612202,0.91491016,103010.0,103000.0,0.20255196]
[1747474612501,0.79441806,103010.0,103000.0,0.20255196]
[1747474612701,0.79441806,103010.0,103000.0,0.42131196]
[1747474613898,0.91491016,103010.0,103000.0,0.20255196]
[1747474614094,0.91491016,103010.0,103000.0,0.42127196]
[1747474615598,1.00480909,103010.0,103000.0,0.42127196]
[1747474616503,1.00480909,103010.0,103000.0,0.00844216]
[1747474616696,1.00480909,103010.0,103000.0,0.20255206]
[1747474617094,1.00480909,103010.0,103000.0,0.00844216]
[1747474618394,0.94488203,103010.0,103000.0,0.00844216]
[1747474621809,0.97474032,103010.0,103000.0,0.00844216]
[1747474622211,1.15474032,103010.0,103000.0,0.00844216]
[1747474623307,0.97474032,103010.0,103000.0,0.00844216]
[1747474625395,1.54046432,103010.0,103000.0,6e-08]
[1747474625602,1.89910432,103010.0,103000.0,6e-08]
[1747474626204,1.82910432,103010.0,103000.0,6e-08]
[1747474626410,1.59202032,103010.0,103000.0,6e-08]
[1747474626713,1.59202032,103010.0,103000.0,0.06060006]
[1747474626714,1.03424822,103010.0,103000.0,0.06060006]
[1747474626905,1.15474032,103010.0,103000.0,0.06060006]
[1747474627210,0.97474032,103010.0,103000.0,0.06060006]
[1747474628211,0.94480314,103010.0,103000.0,0.06060006]
[1747474628407,0.94480314,103010.0,103000.0,6e-08]
[1747474630213,1.26348314,103010.0,103000.0,6e-08]
[1747474630607,1.16348314,103010.0,103000.0,6e-08]
[1747474630807,1.0736631,103010.0,103000.0,6e-08]
[1747474631108,1.2922631,103010.0,103000.0,6e-08]
[1747474631410,1.0736631,103010.0,103000.0,6e-08]
[1747474631709,0.734491,103010.0,103000.0,0.19410986]
[1747474631912,0.734491,103010.0,103000.0,0.30780986]
[1747474632209,0.734491,103010.0,103000.0,0.36750986]
[1747474632913,0.002,103010.0,103000.0,0.48800196]
[1747474633413,0.002,103010.0,103000.0,0.66800196]
[1747474634621,0.196091,103010.0,103000.0,0.66800196]
[1747474634821,0.196091,103010.0,103000.0,0.54750986]
[1747474635408,0.196091,103010.0,103000.0,0.76606986]
[1747474635810,0.196091,103010.0,103000.0,0.98470986]
[1747474637019,0.308891,103010.0,103000.0,0.98470986]
[1747474637221,0.308891,103010.0,103000.0,0.54750986]
[1747474637414,0.366691,103010.0,103000.0,0.54750986]
[1747474637815,0.308891,103010.0,103000.0,0.54750986]
[1747474638006,0.002,103010.0,103000.0,0.66800196]
[1747474638212,0.002,103010.0,103000.0,1.44570196]
[1747474638617,0.196091,103010.0,103000.0,1.88286196]
[1747474639017,0.002,103010.0,103000.0,1.88286196]
[1747474639720,0.002,103010.0,103000.0,2.22994596]
[1747474640115,0.002,103010.0,103000.0,1.97994596]
[1747474640716,0.002,103010.0,103000.0,1.98975561]
[1747474640919,0.002,103010.0,103000.0,2.02901697]
[1747474641114,0.002,103010.0,103000.0,2.01920732]
[1747474643822,0.196091,103010.0,103000.0,2.01920732]
[1747474644118,0.196091,103010.0,103000.0,1.65840732]
[1747474644327,0.196091,103010.0,103000.0,1.65832732]
[1747474645119,0.196091,103010.0,103000.0,1.34280332]
[1747474645429,0.002,103010.0,103000.0,1.12416332]
[1747474645622,0.002,103010.0,103000.0,1.56120332]
[1747474646522,0.002,103010.0,103000.0,1.52194196]
[1747474646724,0.1233,103010.0,103000.0,1.52194196]
[1747474647225,0.0634,103010.0,103000.0,1.52194196]
[1747474647427,0.002,103010.0,103000.0,1.52194196]
[1747474647627,0.002,103010.0,103000.0,1.44570196]
[1747474647824,0.002,103010.0,103000.0,1.52194196]
[1747474648027,0.002,103010.0,103000.0,1.88274196]
[1747474649932,0.82182652,103030.0,103020.0,0.1940722]
[1747474650232,0.82182652,103030.0,103020.0,0.5924322]
[1747474650430,0.94231862,103030.0,103020.0,0.6507322]
[1747474650631,0.94231862,103030.0,103020.0,0.5924322]
[1747474650833,0.94231862,103030.0,103020.0,0.3740722]
[1747474651022,0.94731862,103030.0,103020.0,0.3750722]
[1747474651329,0.95031862,103030.0,103020.0,0.1960722]
[1747474653137,1.00991862,103030.0,103020.0,0.1960722]
[1747474653434,1.00991862,103030.0,103020.0,0.2550722]
[1747474655334,0.64911862,103030.0,103020.0,0.2550722]
[1747474655539,1.37071862,103030.0,103020.0,0.061]
[1747474655834,1.37071862,103030.0,103020.0,0.2550722]
[1747474656536,1.37071862,103030.0,103020.0,0.1960722]
[1747474656733,1.31084937,103030.0,103020.0,0.1960722]
[1747474656934,1.31084937,103030.0,103020.0,0.002]
[1747474658746,1.46791337,103030.0,103020.0,0.002]
[1747474659246,1.49786672,103030.0,103020.0,0.002]
[1747474659542,1.61908272,103030.0,103020.0,0.002]
[1747474659736,1.40080272,103030.0,103020.0,0.002]
[1747474659944,2.56495882,103030.0,103020.0,1e-07]
[1747474660145,2.74495882,103030.0,103020.0,1e-07]
[1747474660850,0.1940909,103010.0,103000.0,6e-08]
[1747474661141,1.036183,103010.0,103000.0,6e-08]
[1747474661330,1.211783,103010.0,103000.0,6e-08]
[1747474662147,1.34154022,103010.0,103000.0,0.00100006]
[1747474662641,1.87518422,103010.0,103000.0,0.00100006]
[1747474663344,0.1941098,103000.0,102990.0,0.00194184]
[1747474663555,0.7892019,103000.0,102990.0,0.00194184]
[1747474664546,0.7922019,103000.0,102990.0,0.00294184]
[1747474664944,0.7942019,103000.0,102990.0,0.00394184]
[1747474665446,0.8442019,103000.0,102990.0,0.00394184]
[1747474665650,0.96395912,103000.0,102990.0,0.00394184]
[1747474667050,1.33923499,103000.0,102990.0,0.00394184]
[1747474667237,1.51923499,103000.0,102990.0,0.00394184]
[1747474667543,0.1941476,102980.0,102970.0,0.00097111]
[1747474667749,1.0362397,102980.0,102970.0,0.00097111]
[1747474667949,1.1490397,102980.0,102970.0,0.00097111]
[1747474668852,1.23871288,102980.0,102970.0,0.00097111]
[1747474669150,1.23971288,102980.0,102970.0,0.00297111]
[1747474669550,1.23971288,102980.0,102970.0,0.00397111]
[1747474671045,1.12915152,102980.0,102970.0,0.00397111]
[1747474671250,1.24964362,102980.0,102970.0,0.00397111]
[1747474671642,1.46804362,102980.0,102970.0,0.00397111]
[1747474673649,1.24964362,102980.0,102970.0,0.00397111]
[1747474673843,1.24964362,102980.0,102970.0,0.06277111]
[1747474674151,1.24964362,102980.0,102970.0,0.25693751]
[1747474674359,1.24964362,102980.0,102970.0,0.17437111]
[1747474674654,1.24964362,102980.0,102970.0,0.36853751]
[1747474675751,1.12915152,102980.0,102970.0,0.36853751]
[1747474676145,1.12915152,102980.0,102970.0,0.54853751]
[1747474678558,1.18884935,102980.0,102970.0,0.54853751]
[1747474681561,1.09917617,102980.0,102970.0,0.54853751]
[1747474683457,1.21966827,102980.0,102970.0,0.35437111]
[1747474685564,1.09917617,102980.0,102970.0,0.35437111]
[1747474685764,1.21966827,102980.0,102970.0,0.35437111]
[1747474688066,1.24964362,102980.0,102970.0,0.35437111]
[1747474688267,1.12915152,102980.0,102970.0,0.35437111]
[1747474688473,1.24964362,102980.0,102970.0,0.35437111]
[1747474692669,1.24964362,102980.0,102970.0,0.24277111]
[1747474693266,1.24964362,102980.0,102970.0,0.06277111]
[1747474694376,1.15997044,102980.0,102970.0,0.06277111]
[1747474696074,1.15997044,102980.0,102970.0,0.00397111]
[1747474697063,1.27972766,102980.0,102970.0,0.00397111]
[1747474698882,1.49772766,102980.0,102970.0,0.00397111]
[1747474701181,1.49772766,102980.0,102970.0,0.06107111]
[1747474707298,1.53571484,102980.0,102970.0,0.06107111]
[1747474708885,1.53571484,102980.0,102970.0,0.00397111]
[1747474709382,1.54571484,102980.0,102970.0,0.00397111]
[1747474710589,0.1941664,102970.0,102960.0,0.0588]
[1747474710778,1.01852604,102970.0,102960.0,0.0588]
[1747474710975,1.09776568,102970.0,102960.0,0.0588]
[1747474711179,0.1941853,102960.0,102950.0,0.1168426]
[1747474711381,0.74642494,102960.0,102950.0,0.1715426]
[1747474711579,0.74642494,102960.0,102950.0,0.1150426]
[1747474711779,0.74642494,102960.0,102950.0,0.0566426]
[1747474712189,0.74642494,102960.0,102950.0,0.2366426]
[1747474712487,0.86618216,102960.0,102950.0,0.2366426]
[1747474713274,0.9494218,102960.0,102950.0,0.2456426]
[1747474715089,0.9494218,102960.0,102950.0,0.0656426]
[1747474715593,0.79094252,102960.0,102950.0,0.0656426]
[1747474715894,0.9494218,102960.0,102950.0,0.0656426]
[1747474716788,0.9454218,102960.0,102950.0,0.0576426]
[1747474717002,0.9464218,102960.0,102950.0,0.0586426]
[1747474717992,1.0014218,102960.0,102950.0,0.0586426]
[1747474719098,0.92218216,102960.0,102950.0,0.1121426]
[1747474719299,0.92218216,102960.0,102950.0,0.1657426]
[1747474720091,0.92218216,102960.0,102950.0,0.3457426]
[1747474721388,1.0014218,102960.0,102950.0,0.2386426]
[1747474721694,1.0114218,102960.0,102950.0,0.2386426]
[1747474722396,0.89166458,102960.0,102950.0,0.2386426]
[1747474722581,1.14166458,102960.0,102950.0,0.2386426]
[1747474722787,0.94166458,102960.0,102950.0,0.2386426]
[1747474722987,0.94166458,102960.0,102950.0,0.1839426]
[1747474723395,1.02479404,102960.0,102950.0,0.1839426]
[1747474723787,1.02479404,102960.0,102950.0,0.2423426]
[1747474724895,0.96479404,102960.0,102950.0,0.2423426]
[1747474725199,1.23479404,102960.0,102950.0,0.2423426]
[1747474725407,0.87399404,102960.0,102950.0,0.2423426]
[1747474725699,1.59559404,102960.0,102950.0,0.2423426]
[1747474726785,2.03115404,102960.0,102950.0,0.2423426]
[1747474727599,1.88551674,102960.0,102930.0,0.00097149]
[1747474727798,0.4552136,102950.0,102940.0,0.0558]
[1747474727993,1.2553687,102950.0,102940.0,0.0558]
[1747474728300,1.2553687,102950.0,102940.0,0.2358]
[1747474729099,1.37717307,102950.0,102940.0,0.2368]
[1747474729689,1.2563687,102950.0,102940.0,0.2378]
[1747474729892,1.37717307,102950.0,102940.0,0.2966]
[1747474730701,0.65557307,102950.0,102940.0,0.2966]
[1747474730896,1.2563687,102950.0,102940.0,0.2966]
[1747474731200,1.49690542,102950.0,102940.0,0.2966]
[1747474733920,1.46690542,102950.0,102940.0,0.2966]
[1747474735510,1.54690542,102950.0,102940.0,0.2966]
[1747474737505,1.97238542,102950.0,102940.0,0.2966]
[1747474737807,1.53690542,102950.0,102940.0,0.2966]
[1747474738606,1.53690542,102950.0,102940.0,0.3515]
[1747474739811,1.75450542,102950.0,102940.0,0.3515]
[1747474740311,1.75450542,102950.0,102940.0,0.2966]
[1747474742007,1.75450542,102950.0,102940.0,0.2378]
[1747474743415,1.71298662,102950.0,102940.0,0.2378]
[1747474743713,1.71298662,102950.0,102940.0,0.2938]
[1747474745422,1.71298662,102950.0,102940.0,0.2378]
[1747474745801,1.7429508,102950.0,102940.0,0.2378]
[1747474750419,1.7428308,102950.0,102940.0,0.2378]
[1747474750610,1.66354523,102950.0,102940.0,0.3482]
[1747474750816,1.60874523,102950.0,102940.0,0.3482]
[1747474751017,1.16361013,102950.0,102940.0,0.62170847]
[1747474751206,1.11505503,102950.0,102940.0,0.62170847]
[1747474751411,1.11505503,102950.0,102940.0,0.3482]
[1747474751606,1.11505503,102950.0,102940.0,0.5424229]
[1747474751819,0.70570073,102950.0,102940.0,0.5424229]
[1747474752020,0.70570073,102950.0,102940.0,0.9593229]
[1747474752320,0.70570073,102950.0,102940.0,1.03860847]
[1747474752619,0.6459569,102950.0,102940.0,1.03860847]
[1747474753016,0.6459569,102950.0,102940.0,0.9593229]
[1747474753416,0.6459569,102950.0,102940.0,1.13574847]
[1747474753810,0.6459569,102950.0,102940.0,1.35322847]
[1747474754010,0.6459569,102950.0,102940.0,1.68251404]
[1747474754011,0.4517527,102950.0,102940.0,1.68251404]
[1747474754211,0.0909527,102950.0,102940.0,2.04331404]
[1747474754406,0.2851569,102950.0,102940.0,2.04331404]
[1747474755717,0.1952042,102950.0,102940.0,2.04331404]
[1747474756417,0.1952042,102950.0,102940.0,1.96402847]
[1747474756621,0.1952042,102950.0,102940.0,2.18142847]
[1747474757220,0.1952042,102950.0,102940.0,2.22288053]
[1747474759126,0.001,102950.0,102940.0,2.22288053]
[1747474759428,0.001,102950.0,102940.0,2.36288053]
[1747474759611,0.1952042,102950.0,102940.0,2.36288053]
[1747474759815,0.001,102950.0,102940.0,2.36288053]
[1747474760221,0.1952042,102950.0,102940.0,2.36288053]
[1747474762022,0.001,102950.0,102940.0,2.36288053]
[1747474763019,0.001,102950.0,102940.0,2.40214189]
[1747474763416,0.001,102950.0,102940.0,2.18470189]
[1747474763731,0.1952041,102950.0,102940.0,1.71726189]
[1747474763943,0.1952041,102950.0,102940.0,1.57374189]
[1747474764522,0.001,102950.0,102940.0,1.57374189]
[1747474764726,0.001,102950.0,102940.0,1.93454189]
[1747474765624,0.001,102950.0,102940.0,2.18454189]
[1747474766130,0.001,102950.0,102940.0,2.14528053]
[1747474766328,0.001,102950.0,102940.0,2.11264053]
[1747474766528,0.001,102950.0,102940.0,1.67800053]
[1747474766931,0.001,102950.0,102940.0,2.11264053]
[1747474767127,0.001,102950.0,102940.0,1.67800053]
[1747474767329,0.001,102950.0,102940.0,2.11264053]
[1747474772742,0.002,102960.0,102950.0,0.31494183]
[1747474772941,0.002,102960.0,102950.0,0.82474183]
[1747474773130,1e-07,102960.0,102950.0,1.51876983]
[1747474774050,1e-07,102960.0,102950.0,0.9401042]
[1747474774340,0.1020001,102960.0,102950.0,1.06084183]
[1747474774640,0.1543001,102960.0,102950.0,1.06084183]
[1747474774837,0.3484854,102960.0,102950.0,1.06084183]
[1747474775040,0.3504854,102960.0,102950.0,1.49636183]
[1747474775244,0.3514854,102960.0,102950.0,1.44556183]
[1747474775638,0.3514854,102960.0,102950.0,0.8903042]
[1747474775835,0.3514854,102960.0,102950.0,1.3248242]
[1747474776746,0.3514854,102960.0,102950.0,1.2752242]
[1747474776943,0.7122854,102960.0,102950.0,1.0581042]
[1747474777141,0.7122854,102960.0,102950.0,1.2276242]
[1747474777739,0.83302303,102960.0,102950.0,1.0105042]
[1747474777947,0.83302303,102960.0,102950.0,0.3994]
[1747474778155,0.83302303,102960.0,102950.0,0.4136041]
[1747474778360,0.89292899,102960.0,102950.0,0.4136041]
[1747474780052,0.89292899,102960.0,102950.0,0.1962041]
[1747474780248,0.89292899,102960.0,102950.0,0.002]
[1747474780553,0.89292899,102960.0,102950.0,0.1962041]
[1747474780953,0.8022381,102960.0,102950.0,0.1962041]
[1747474781755,0.8022381,102960.0,102950.0,0.002]
[1747474783453,0.8022381,102960.0,102950.0,0.1962042]
[1747474783959,0.8022381,102960.0,102950.0,0.002]
[1747474784354,0.95295997,102960.0,102950.0,0.1962042]
[1747474784562,0.95295997,102960.0,102950.0,0.002]
[1747474784749,0.95295997,102960.0,102950.0,0.1962042]
[1747474784950,0.95295997,102960.0,102950.0,0.002]
[1747474785952,0.63803704,102960.0,102950.0,0.31694173]
[1747474786157,0.83222234,102960.0,102950.0,0.54524173]
[1747474786659,0.63803704,102960.0,102950.0,0.54524173]
[1747474787059,0.83222234,102960.0,102950.0,0.76228173]
[1747474787562,0.77218768,102960.0,102950.0,0.76228173]
[1747474788061,0.77218768,102960.0,102950.0,1.17918173]
[1747474788561,0.57800238,102960.0,102950.0,1.17918173]
[1747474788765,0.21720238,102960.0,102950.0,1.17918173]
[1747474788965,0.41138768,102960.0,102950.0,1.23158173]
[1747474789461,0.35908768,102960.0,102950.0,1.44866173]
[1747474791464,0.16490238,102960.0,102950.0,1.44866173]
[1747474791661,0.11400238,102960.0,102950.0,1.44866173]
[1747474791858,0.30818768,102960.0,102950.0,1.44866173]
[1747474792058,0.06290238,102960.0,102950.0,1.54578973]
[1747474792554,0.25708768,102960.0,102950.0,1.54578973]
[1747474792948,0.25708768,102960.0,102950.0,1.90658973]
[1747474793151,0.06290238,102960.0,102950.0,1.90658973]
[1747474793465,0.25708758,102960.0,102950.0,1.7858521]
[1747474793665,0.25708758,102960.0,102950.0,1.90658973]
[1747474793866,0.2936853,102960.0,102950.0,1.51173109]
[1747474794057,0.2936853,102960.0,102950.0,1.94577109]
[1747474794763,0.2936853,102960.0,102950.0,1.63168309]
[1747474794971,0.2936853,102960.0,102950.0,1.84864309]
[1747474795264,0.2936854,102960.0,102950.0,1.27088309]
[1747474795463,0.2936854,102960.0,102950.0,1.48784309]
[1747474796169,0.1461001,102960.0,102950.0,1.48784309]
[1747474797469,0.1461001,102960.0,102950.0,1.44858173]
[1747474798671,0.3402854,102960.0,102950.0,1.44858173]
[1747474799364,0.3402854,102960.0,102950.0,1.44854173]
[1747474800371,0.1461001,102960.0,102950.0,1.44854173]
[1747474801175,0.1461001,102960.0,102950.0,1.44850173]
[1747474801570,0.3402854,102960.0,102950.0,0.96214173]
[1747474801762,0.3402854,102960.0,102950.0,1.39610173]
[1747474801964,0.7010854,102960.0,102950.0,1.0584841]
[1747474802163,0.7010854,102960.0,102950.0,1.2753641]
[1747474802560,0.5069001,102960.0,102950.0,1.39610173]
[1747474802965,0.7010854,102960.0,102950.0,1.01294173]
[1747474803273,0.7010854,102960.0,102950.0,1.44690173]
[1747474803475,0.7010854,102960.0,102950.0,1.3261641]
[1747474803673,0.76098768,102960.0,102950.0,1.3261641]
[1747474804061,0.20600238,102960.0,102950.0,1.3261641]
[1747474804261,0.40018768,102960.0,102950.0,0.8922041]
[1747474804479,0.76098768,102960.0,102950.0,1.3261241]
[1747474805366,0.76098768,102960.0,102950.0,1.1092841]
[1747474805565,0.76098768,102960.0,102950.0,1.3261241]
[1747474805873,0.76098768,102960.0,102950.0,1.0584841]
[1747474806073,0.88172531,102960.0,102950.0,0.8414041]
[1747474806382,0.88172531,102960.0,102950.0,0.7931042]
[1747474807375,0.88172531,102960.0,102950.0,0.6131042]
[1747474808072,0.88172531,102960.0,102950.0,0.1962042]
[1747474808472,0.76098768,102960.0,102950.0,0.1962042]
[1747474808674,0.76098768,102960.0,102950.0,0.2426042]
[1747474809573,0.79094161,102960.0,102950.0,0.2426042]
[1747474809783,0.79094161,102960.0,102950.0,0.0484]
[1747474809983,0.79094161,102960.0,102950.0,0.002]
[1747474810177,0.79094161,102960.0,102950.0,0.1962042]
[1747474810374,0.79094161,102960.0,102950.0,0.002]
[1747474810574,0.91167924,102960.0,102950.0,0.002]
[1747474813381,0.82182303,102960.0,102950.0,0.002]
[1747474818086,0.46102303,102960.0,102950.0,0.002]
[1747474818383,1.18262303,102960.0,102950.0,0.002]
[1747474819189,0.46102303,102960.0,102950.0,0.002]
[1747474819385,1.18262303,102960.0,102950.0,0.002]
[1747474820083,1.30255997,102960.0,102950.0,0.002]
[1747474821887,0.58095997,102960.0,102950.0,0.002]
[1747474822080,1.30255997,102960.0,102950.0,0.002]
[1747474822792,1.18262303,102960.0,102950.0,0.002]
[1747474825281,1.20262303,102960.0,102950.0,0.002]